Cogmind - Beta 16 @@@ ROGUE MODE // 2025.11.16 @ 00:40:54 Player: Skysub Result: Destroyed by H-71 Marshal with Heavy Mass Driver Performance ------------- Evolutions (5) 2500 Regions Visited (18) 3600 Robots Destroyed (283) 1415 Value Destroyed (11183) 11183 Prototype IDs (20) 400 Alien Tech Used (0) 0 Bonus (9835) 9835 TOTAL SCORE: 28933 Bonus ------- High Alert Combat Kills 2127 Follower Combat Kills 3824 Entered Garrisons 800 Used RIF Installer 2000 Network Hubs Disabled 400 Built Enhanced Grunts 300 Met R17 at Cetus 500 Friendly Fire -116 Cogmind --------- Core Integrity 0/1000 Matter 127/300 Energy 14/100 System Corruption 13% Temperature Cool (0) Movement Core (100) Ox1 Location -5/Factory Parts ------- > --- POWER (2) -------- (None) > --- PROPULSION (2) --- (None) > --- UTILITY (9) ------ Triangulator Enhanced Optical Array Experimental Sensor Array Advanced Signal Interpreter Advanced Melee Analysis Suite Advanced Hacking Suite System Shield > --- WEAPON (4) ------- Impact Mace > --- INVENTORY (5) ---- Nuclear Pulse Array Advanced Cooling System Improved Terrain Scan Processor Improved Weapon Cycler Peak State ------------ > --- POWER ------------ Quantum Reactor Quantum Reactor > --- PROPULSION ------- Carbon-fiber Leg Enhanced Flexi-carbon Leg > --- UTILITY ---------- Advanced Cooling System Huge Storage Unit Enhanced Optical Array Experimental Sensor Array Centrium Medium Armor Plating Advanced Hacking Suite Relay Coupler [NC] Relay Coupler [Grunt] Relay Coupler [Sentry] > --- WEAPON ----------- Field Laser Gauss Rifle Advanced KE Penetrator Advanced KE Penetrator > --- INVENTORY -------- Quantum Reactor Quantum Reactor Power Amplifier Advanced Energy Well Matter Compressor Weapon Cycler Transmission Jammer Experimental Power Shielding Improved Medium Armor Plating Improved Medium Armor Plating Improved Medium Armor Plating Layered Medium Armor Plating Centrium Medium Armor Plating Centrium Medium Armor Plating EM Disruption Field Shield Generator Relay Coupler [Swarmer] Relay Coupler [Sentry] Relay Coupler [Demolisher] Remote Datajack Phasing Sabre [Rating: 106] Favorites ----------- Power Quantum Reactor Engine Heavy Deuterium Engine Power Core Light Nuclear Core Reactor Quantum Reactor Propulsion Armored Wheel Treads Improved Treads Leg Enhanced Flexi-carbon Leg Wheel Armored Wheel Flight Unit VTOL Module Utility Huge Storage Unit Device Remote Force Field Storage Huge Storage Unit Processor Advanced Targeting Computer Hackware Relay Coupler [Grunt] Protection Hardened Heavy Armor Plating Weapon Improved Assault Rifle Energy Gun Heavy Laser Energy Cannon Advanced Beam Cannon Ballistic Gun Improved Assault Rifle Launcher Missile Launcher Special Weapon Remote Datajack Impact Weapon Heavy Mace Slashing Weapon Katana Build | -11 -10 -10 -9 -9 -8 -8 -8 -8 -7 -7 -7 -6 -6 -6 -6 -6 -6 -5 ------- Run | Yrd Mat Min Mat Min Mat Gar Mat Gar Fac Sto Gar Fac Ext Cet Arc Hub Gar Fac Slots Evolved 10 | . . . 2 . 2 . . . 2 . . 2 . . . . . 2 Power 1 | . . . . . . . . . . . . 1 . . . . . . Propulsion . | . . . . . . . . . . . . . . . . . . . Utility 7 | . . . 2 . 1 . . . 1 . . 1 . . . . . 2 Weapon 2 | . . . . . 1 . . . 1 . . . . . . . . . Parts Attached 217 | 8 8 1 21 1 6 13 7 9 9 8 10 17 37 9 1 8 11 33 Power 26 | 1 1 . 6 . . 1 . 2 1 2 1 3 4 3 . . . 1 Engine 17 | 1 1 . 5 . . . . 1 1 1 . 3 4 . . . . . Core 4 | . . . 1 . . 1 . 1 . . 1 . . . . . . . Reactor 5 | . . . . . . . . . . 1 . . . 3 . . . 1 Propulsion 37 | 3 4 . 3 . 1 1 1 1 . 2 . 2 5 . . 4 3 7 Treads 7 | 2 1 . 1 . 1 . . . . . . . . . . 1 . 1 Leg 4 | . . . . . . . . . . . . . . . . 1 2 1 Wheel 21 | 1 3 . 2 . . 1 1 1 . 2 . 2 3 . . 2 . 3 Hover . | . . . . . . . . . . . . . . . . . . . Flight 5 | . . . . . . . . . . . . . 2 . . . 1 2 Utility 89 | 2 1 1 5 1 4 4 3 3 5 2 6 9 13 4 . 3 3 20 Device 33 | 1 . . 3 1 1 . . 1 3 1 1 3 6 2 . 1 1 8 Storage 6 | 1 1 . . . . . . . 1 . . . 1 1 . . . 1 Processor 7 | . . 1 . . . . 2 . . . 1 1 . . . . . 2 Hackware 13 | . . . . . . . . . . . . 2 4 . . 1 1 5 Protection 30 | . . . 2 . 3 4 1 2 1 1 4 3 2 1 . 1 1 4 Artifact . | . . . . . . . . . . . . . . . . . . . Weapon 65 | 2 2 . 7 . 1 7 3 3 3 2 3 3 15 2 1 1 5 5 Energy Gun 11 | 1 1 . . . . . . . 1 . . . 5 . . . 2 1 Energy Cannon 2 | . . . 1 . . 1 . . . . . . . . . . . . Ballistic Gun 40 | 1 1 . 4 . 1 3 3 3 1 2 3 3 8 2 1 . 2 2 Ballistic Cannon . | . . . . . . . . . . . . . . . . . . . Launcher 4 | . . . 2 . . 1 . . 1 . . . . . . . . . Special Weapon 3 | . . . . . . . . . . . . . 1 . . 1 . 1 Impact Weapon 3 | . . . . . . 1 . . . . . . 1 . . . . 1 Slashing Weapon 2 | . . . . . . 1 . . . . . . . . . . 1 . Piercing Weapon . | . . . . . . . . . . . . . . . . . . . Special Melee Weapon . | . . . . . . . . . . . . . . . . . . . Unidentified Prototypes 20 | . . . 3 . 1 . . . 1 3 . 1 . 5 . 3 2 1 Corrupted Parts 4 | . . . . . . . . . . . . . . 2 . . 2 . System Corruption 24 | . . . . . . . . . . . . . . 11 . . 13 . Parts Lost 84 | . 5 1 6 1 . 1 3 4 3 . 16 4 9 2 . 1 5 23 Power 9 | . 1 . 2 . . . . 1 1 . 1 . 1 . . . . 2 Propulsion 17 | . 3 . 1 . . . . 1 . . 2 1 2 1 . . 2 4 Utility 26 | . . 1 2 1 . . 1 . 1 . 6 2 1 . . 1 . 10 Weapon 32 | . 1 . 1 . . 1 2 2 1 . 7 1 5 1 . . 3 7 Highest Loss Streak 12 | . 2 1 3 1 . 1 2 1 2 . 8 3 3 1 . 1 3 12 To Critical Strikes . | . . . . . . . . . . . . . . . . . . . Average Backups 21 | 3 11 16 22 21 21 24 25 22 20 21 20 23 23 24 25 24 23 15 Power . | . . . 1 1 1 1 1 . . . 1 . . . 2 2 2 1 Propulsion 2 | 1 3 4 4 5 4 3 2 1 1 1 1 1 . . . . . . Utility 12 | . 3 4 5 7 7 13 15 15 14 13 13 18 16 19 19 18 19 11 Weapon 5 | . 3 6 10 8 8 5 5 3 3 4 3 2 5 5 4 4 1 1 Tool/Special . | . . . . . . . . . . . . . . . . . . . Unused Backups 79 | . . 1 31 1 2 3 3 5 1 4 1 3 11 8 . . . 5 Power 4 | . . 1 2 . . . . . . . . 1 . . . . . . Propulsion 9 | . . . 5 . . . 1 . 1 1 . 1 . . . . . . Utility 35 | . . . 5 1 1 2 1 5 . 1 1 1 7 6 . . . 4 Weapon 31 | . . . 19 . 1 1 1 . . 2 . . 4 2 . . . 1 Tool/Special . | . . . . . . . . . . . . . . . . . . . Average Slot Usage (%) 93 | . 99 100 99 99 90 100 99 93 91 86 77 88 96 92 92 96 97 76 Engine 7 | . 13 14 9 11 9 4 . 3 2 7 3 10 12 2 . . . . Core 1 | . . . 1 . . 4 9 5 3 . 2 . . . . . . . Reactor 1 | . . . . . . . . . . . . . . 10 13 13 13 6 Treads 3 | . 9 14 11 11 9 1 . . . . . . . . . . . . Wheel 11 | . 18 14 10 11 9 16 18 17 15 9 8 9 12 6 6 9 6 3 Device 8 | . 14 10 15 11 14 4 8 . 8 15 8 10 5 5 6 2 1 8 Storage 8 | . 14 14 11 11 9 9 9 9 7 7 7 6 5 6 6 6 6 3 Processor 9 | . . 3 11 11 9 9 16 18 13 7 6 8 13 13 13 7 6 6 Hackware 7 | . . . . . . . . . . . . 8 17 20 20 24 26 22 Protection 6 | . . . 6 10 6 22 10 12 7 7 9 5 1 . . 3 4 3 Energy Gun 2 | . 11 . . . . . . . 2 7 3 . 4 1 . . 2 2 Energy Cannon 1 | . . . 5 . . 6 6 . . . . . . . . . . . Ballistic Gun 18 | . 16 28 16 22 24 15 20 21 26 21 18 24 16 18 19 20 20 10 Peak Build Rating 106 | 7 8 9 24 25 37 38 38 40 51 57 63 59 64 78 79 92 95 106 Average Rating 43 | 5 7 8 20 24 34 33 35 37 48 54 50 52 55 69 78 81 88 75 On Entrance 42 | . 7 8 9 23 23 37 33 31 40 50 56 40 53 58 78 79 82 95 Avg Prop Armor Cover (%) 10 | 4 14 14 9 8 6 4 . . . . . . . . . . 1 . Naked Turns . | . . . . . . . . . . . . . . . . . . . Heaviest Build 151 | 11 88 88 100 101 114 122 111 118 127 131 143 143 128 146 146 146 147 151 Greatest Support 43 | 40 40 16 16 12 12 24 24 24 24 28 28 28 28 26 10 28 43 43 Greatest Overweight (x) 47 | . 8 5 9 8 9 10 4 8 5 5 10 10 5 14 14 14 47 15 Average Overweight (x) 5 | . 2 5 8 7 8 4 4 4 4 4 5 6 3 12 14 8 6 2 Largest Inventory Capacity 25 | 8 25 25 25 25 25 25 25 25 25 25 25 25 25 25 25 25 25 25 Average Capacity 24 | 7 21 25 25 25 25 25 25 25 25 25 25 25 24 25 25 25 25 18 Most Carried 25 | 5 15 17 25 25 25 25 25 25 25 25 25 25 25 25 25 25 25 24 Average Carried 22 | 3 11 16 23 24 24 24 24 24 24 24 22 23 23 24 24 24 23 15 Final Capacity 25 | 8 25 25 25 25 25 25 25 25 25 25 25 25 25 25 25 25 25 5 Final Carried 25 | 5 13 17 25 25 25 25 25 25 25 24 21 25 25 25 25 25 23 5 Class Distribution -------------------- 30% | Mutant 20% | Bothacker-Gunner 13% | Bothacker-Tank 8% | Botlord-Gunner 6% | Commander-Gunner 6% | Scavenger-Mutant 4% | Tank 3% | Gunner Dominant Class ---------------- Mutant | -10/Materials Mutant | -10/Mines Mutant | -9/Materials Mutant | -9/Mines Gunner | -8/Materials Mutant | -8/Garrison Gunner | -8/Materials Bothacker-Gunner | -8/Garrison Bothacker-Gunner | -7/Factory Bothacker-Gunner | -7/Storage Bothacker-Tank | -7/Garrison Botlord-Gunner | -6/Factory Bothacker-Gunner | -6/Extension Commander-Gunner | -6/Cetus Bothacker-Gunner | -6/Archives Bothacker-Tank | -6/Hub_04(d) Bothacker-Tank | -6/Garrison Bothacker-Tank | -5/Factory Resources | -11 -10 -10 -9 -9 -8 -8 -8 -8 -7 -7 -7 -6 -6 -6 -6 -6 -6 -5 ----------- Run | Yrd Mat Min Mat Min Mat Gar Mat Gar Fac Sto Gar Fac Ext Cet Arc Hub Gar Fac Matter Collected 9437 | 249 385 26 851 31 151 616 486 557 577 310 511 1072 1723 320 50 253 469 800 Remotely . | . . . . . . . . . . . . . . . . . . . Salvage Created 10962 | 38 624 79 1572 12 233 937 786 456 647 584 715 820 1676 104 37 309 660 673 Parts 599 | 6 45 10 105 . 13 61 44 35 36 25 30 37 55 5 3 9 39 41 Haulers Intercepted 21 | . 2 . 5 . 1 . 2 . . 3 . 1 5 . . 2 . . Recyclers Shooed 11 | . 2 . 3 . . . . . 1 . . 2 . . . . . 3 Parts Field Recycled . | . . . . . . . . . . . . . . . . . . . Retrieved Matter . | . . . . . . . . . . . . . . . . . . . Parts Self-Destructed . | . . . . . . . . . . . . . . . . . . . Prevented . | . . . . . . . . . . . . . . . . . . . Parts Restored . | . . . . . . . . . . . . . . . . . . . Kills | -11 -10 -10 -9 -9 -8 -8 -8 -8 -7 -7 -7 -6 -6 -6 -6 -6 -6 -5 ------- Run | Yrd Mat Min Mat Min Mat Gar Mat Gar Fac Sto Gar Fac Ext Cet Arc Hub Gar Fac Combat Hostiles Destroyed 213 | . 10 4 29 1 3 24 19 25 10 5 23 10 17 3 . 1 17 12 Melee 1 | . . . . . . . . . . . . . . . . . . 1 Guns 146 | . 9 4 16 1 3 12 12 9 5 5 12 10 17 3 . 1 17 10 Cannons 15 | . . . 8 . . 4 3 . . . . . . . . . . . AOE 47 | . . . 4 . . 7 4 16 5 . 10 . . . . . . 1 Classes Destroyed 20 | 1 5 1 4 1 1 2 2 . . . 1 . 1 . 1 . . . Worker 12 | . . . 3 . . . 1 . 1 1 . 3 1 . . . . 2 Builder 10 | . 3 . 2 . . . 1 . . . . 2 1 . . . . 1 Tunneler 4 | 2 . . . . . . 1 . 1 . . . . . . . . . Hauler 21 | . 2 . 5 . 1 . 2 . . 3 . 1 5 . . 2 . . Recycler 9 | . 1 . 2 . . . . . 1 1 . 1 3 . . . . . Mechanic 3 | . . . . . . . 1 . . . 1 . . . . . . 1 Operator 1 | . . . . . . . . . . . . . . . 1 . . . Watcher 10 | . 1 . 2 . 1 . . 1 2 . . 2 . . . . . 1 Swarmer 53 | . . 3 8 . . 3 3 12 . . 2 3 2 2 . . 11 4 Cutter 2 | . . . . . . 2 . . . . . . . . . . . . Grunt 88 | . 10 1 11 . . 9 9 6 6 1 12 5 9 . . 1 6 2 Brawler 6 | . . . 1 . . 2 2 . . . 1 . . . . . . . Duelist 5 | . . . 1 . . 1 . . 1 . 2 . . . . . . . Protector 1 | . . . . . . . . . . . . . 1 . . . . . Sentry 30 | . . . 8 . 2 3 3 1 2 2 4 . 3 . . 1 . 1 Specialist 2 | . . . . . . . 2 . . . . . . . . . . . Hunter 9 | . . . . . 1 . . 4 . 1 1 . . . . . . 2 Programmer 13 | . . . . . . 3 . 2 1 1 . 2 1 . . . . 3 Behemoth 2 | . . . . . . . . . . . 1 . 1 . . . . . Cetus Guard 1 | . . . . . . . . . . . . . . 1 . . . . Assembled 1 | . . . . 1 . . . . . . . . . . . . . . Savage 1 | . . . . . . 1 . . . . . . . . . . . . Best Kill Streak 20 | 1 3 3 4 1 2 6 20 9 8 2 11 6 4 2 1 2 5 5 Combat Bots Only 11 | . 2 3 4 1 1 6 7 9 6 1 11 4 4 2 . 1 5 4 Max Kills in Single Turn 5 | 1 1 2 2 1 1 2 2 5 5 2 2 1 3 1 1 1 2 2 Gunslinging 1 | . . 1 1 . . . . . . . . . . . . . 1 . Exploded 5 | . . . 1 . . 2 2 5 4 . 2 . . . . . . 1 Melee 1 | . . . . . . . . . . . . . . . . . . 1 Uniques/NPCs Destroyed . | . . . . . . . . . . . . . . . . . . . Combat | -11 -10 -10 -9 -9 -8 -8 -8 -8 -7 -7 -7 -6 -6 -6 -6 -6 -6 -5 -------- Run | Yrd Mat Min Mat Min Mat Gar Mat Gar Fac Sto Gar Fac Ext Cet Arc Hub Gar Fac Hostile Shots Fired 1770 | . 54 22 144 2 16 94 75 106 108 95 392 42 129 16 . 19 103 353 Missed 527 | . 18 5 38 1 5 19 25 23 34 36 126 17 43 5 . 2 26 104 Hits 1243 | . 36 17 106 1 11 75 50 83 74 59 266 25 86 11 . 17 77 249 Melee 24 | . . . 8 . . 4 . . . . 11 . . . . . . 1 Projectile 1219 | . 36 17 98 1 11 71 50 83 74 59 255 25 86 11 . 17 77 248 AOE 8 | . . . . . . 2 . . . . 5 . . . . 1 . . Critical Strikes 43 | . 2 . 2 . . 5 2 . . . 9 1 6 2 . 1 1 12 Damage Taken 17906 | . 509 181 1434 10 167 1208 729 1124 568 476 3564 557 1189 428 . 430 1267 4065 Core 2900 | . 112 42 295 . 17 126 151 135 54 21 292 47 122 105 . 144 203 1034 Absorbed by Shields 1006 | . . . . . . 5 . . . 86 64 . 363 78 . 73 . 337 Redirected to Shielding 85 | . . . . . . . . . . . . 61 6 . . 18 . . Core Remaining (%) 43 | 100 . 38 . 26 . . . 22 . . 47 . . . . . 26 . Volleys Fired 684 | 5 55 10 139 3 12 43 36 40 21 25 44 41 112 13 3 17 29 36 Largest 4 | 2 2 2 2 2 3 3 3 3 4 4 4 4 4 4 3 3 4 4 Hottest 276 | 60 70 40 91 46 69 114 124 79 129 129 146 107 276 193 96 96 178 161 Shots Fired 1783 | 10 109 20 260 6 35 115 104 95 74 94 121 147 311 35 5 47 94 101 Gun 1617 | 10 109 20 213 6 35 78 88 87 72 94 103 147 278 35 3 45 94 100 Cannon 87 | . . . 41 . . 32 14 . . . . . . . . . . . Launcher 41 | . . . 6 . . 5 2 8 2 . 18 . . . . . . . Special 38 | . . . . . . . . . . . . . 33 . 2 2 . 1 Kinetic 1424 | 5 65 20 213 6 35 78 88 87 64 69 87 147 200 33 3 45 87 92 Thermal 280 | 5 44 . 41 . . 32 14 . 8 25 16 . 78 2 . . 7 8 Explosive 41 | . . . 6 . . 5 2 8 2 . 18 . . . . . . . Electromagnetic . | . . . . . . . . . . . . . . . . . . . Robot Hit Streak 36 | 3 15 6 17 6 11 18 16 31 36 10 13 31 19 9 2 11 7 10 Robot Miss Streak 11 | 1 5 1 5 3 2 5 5 3 2 4 5 11 6 3 1 3 7 8 Penetration Max 1 | . . . . . . . . . 1 . 1 1 . . . 1 1 1 Secondary Targets 33 | . 1 1 2 . 1 1 1 1 . . 5 1 6 . . 1 7 5 Max Gunslinging Chain 1 | . 1 1 1 . 1 1 1 1 . . 1 1 1 . . 1 1 1 Shots Hit Robots 1227 | 6 78 15 182 2 27 81 78 82 57 67 98 94 197 24 3 30 40 66 Core Hits 698 | 3 34 7 60 1 10 44 81 73 48 21 90 51 101 8 2 10 28 26 Critical Kills 7 | . . . 1 . 1 1 . . . . . . 1 . . 1 1 1 Critical Parts Destroyed 10 | . . . . . . . . 1 . . 1 . 1 . . . 4 3 Critical Strikes 28 | . 5 . 1 . 1 2 . 1 . 2 1 . 4 . . 2 5 4 Burn 9 | . 5 . . . . . . . . 2 . . 2 . . . . . Meltdown 2 | . . . 1 . . 1 . . . . . . . . . . . . Destroy 15 | . . . . . 1 1 . 1 . . 1 . 1 . . 2 5 3 Smash 2 | . . . . . . . . . . . . . 1 . . . . 1 Melee Attacks 118 | . . . . . . 44 . 13 1 3 28 . 11 . . . 4 14 Impact 42 | . . . . . . 20 . . . . . . 11 . . . . 11 Slashing 76 | . . . . . . 24 . 13 1 3 28 . . . . . 4 3 Piercing . | . . . . . . . . . . . . . . . . . . . Sneak Attacks 6 | . . . . . . 2 . . . . . . 1 . . . . 3 Combat Hostiles . | . . . . . . . . . . . . . . . . . . . Follow-up Attacks . | . . . . . . . . . . . . . . . . . . . Damage Inflicted 27634 | 64 807 136 2991 28 362 2095 2082 2068 1855 1146 3850 1865 3256 506 50 786 1269 2418 Guns 20013 | 64 804 136 2110 28 362 801 1374 1038 1070 1146 1690 1865 3158 506 50 785 1269 1757 Cannons 1234 | . . . 581 . . 450 203 . . . . . . . . . . . Explosions 5077 | . . . 300 . . 434 475 1030 785 . 1953 . . . . . . 100 Melee 1262 | . . . . . . 410 . . . . 193 . 98 . . . . 561 Ramming 48 | . 3 . . . . . 30 . . . 14 . . . . 1 . . Kinetic 18160 | 20 409 136 2110 28 362 801 1374 1038 987 812 1461 1865 2613 468 50 785 1186 1655 Thermal 3087 | 44 395 . 581 . . 450 203 . 83 334 229 . 545 38 . . 83 102 Explosive 4665 | . . . 300 . . 434 475 1030 373 . 1953 . . . . . . 100 Electromagnetic 412 | . . . . . . . . . 412 . . . . . . . . . Impact 794 | . . . . . . 175 . . . . . . 98 . . . . 521 Slashing 468 | . . . . . . 235 . . . . 193 . . . . . . 40 Piercing . | . . . . . . . . . . . . . . . . . . . Highest Corruption 26 | . . . 1 1 . 1 6 7 1 1 3 2 2 13 13 13 26 13 Average Corruption 3 | . . . 1 1 . 1 1 6 1 1 1 1 2 11 13 13 21 7 Corruption Purged . | . . . . . . . . . . . . . . . . . . . Corruption Blocked . | . . . . . . . . . . . . . . . . . . . Effects 210 | . . . 13 3 . 11 4 29 2 6 13 3 30 30 10 7 29 20 Message Errors 51 | . . . 1 1 . 3 . 8 1 1 6 . 10 8 3 2 3 4 Matter Fused 51 | . . . 4 1 . 6 2 5 1 1 2 1 7 5 4 2 5 5 Heat Flow Errors 29 | . . . 3 . . . 2 6 . 2 1 1 2 5 1 . 3 3 Energy Discharges 22 | . . . 2 . . 1 . 3 . . 2 1 1 5 1 . 3 3 Parts Rejected 4 | . . . . . . . . 1 . . . . 1 1 . . 1 . Parts Fused 1 | . . . . . . . . . . . . . 1 . . . . . Data Loss (minor) 29 | . . . 3 . . 1 . 2 . . 1 . 5 4 1 3 6 3 Data Loss (major) 9 | . . . . 1 . . . 1 . . 1 . 1 2 . . 3 . Misfires 5 | . . . . . . . . 1 . 1 . . 1 . . . 2 . Alerts 2 | . . . . . . . . . . . . . . . . . 1 1 Weapon Failures 7 | . . . . . . . . 2 . 1 . . 1 . . . 2 1 Overload Shots . | . . . . . . . . . . . . . . . . . . . Overflow Damage 434 | . . . 5 . . 96 7 48 . . 23 . 98 . . . . 157 Projectiles 10 | . . . 5 . . . 5 . . . . . . . . . . . Explosions 72 | . . . . . . . 2 48 . . 22 . . . . . . . Melee 352 | . . . . . . 96 . . . . 1 . 98 . . . . 157 Knockbacks 4 | . . . . . . 1 1 . . . . . . . . . . 2 Impact 4 | . . . . . . 1 1 . . . . . . . . . . 2 Kinetic . | . . . . . . . . . . . . . . . . . . . Secondary . | . . . . . . . . . . . . . . . . . . . Self-Inflicted Damage 369 | . 1 . . . . 48 38 153 . . 29 . . . . . . 100 Shots 7 | . . . . . . 1 1 2 . . 2 . . . . . . 1 Rammed 6 | . 1 . . . . . 2 . . 1 1 . . . . 1 . . Targets Rammed 6 | . 1 . . . . . 2 . . 1 1 . . . . 1 . . Kicked . | . . . . . . . . . . . . . . . . . . . Crushed . | . . . . . . . . . . . . . . . . . . . Highest Temperature 585 | 40 259 9 112 . 78 321 168 280 217 387 361 277 440 361 122 265 585 442 Average Temperature 109 | 17 77 7 20 . 28 115 51 103 77 137 149 81 113 110 48 97 140 154 Received Heat Transfer 4772 | . 309 57 411 20 27 411 261 144 132 82 1378 72 479 40 . 142 216 591 Effects 29 | . . . . . . . . 3 . 2 4 . 7 . . . 12 1 Shutdowns 6 | . . . . . . . . . . 1 1 . 2 . . . 1 1 Energy Bleed 6 | . . . . . . . . 1 . . 3 . 1 . . . 1 . Interference 9 | . . . . . . . . 2 . . . . 4 . . . 3 . Matter Decay 1 | . . . . . . . . . . . . . . . . . 1 . Short Circuit 2 | . . . . . . . . . . . . . . . . . 2 . Damage (minor) 5 | . . . . . . . . . . 1 . . . . . . 4 . Siege Activations . | . . . . . . . . . . . . . . . . . . . Martial Activations . | . . . . . . . . . . . . . . . . . . . Shielding Activations . | . . . . . . . . . . . . . . . . . . . Robots Disrupted . | . . . . . . . . . . . . . . . . . . . Combat Hostiles . | . . . . . . . . . . . . . . . . . . . Robots Corrupted 1 | . . . . . . . . . . . . . 1 . . . . . Combat Hostiles . | . . . . . . . . . . . . . . . . . . . Parts Fried 2 | . . . . . . . . . . . . . 2 . . . . . Impact Corruptions 6 | . . . . . . 2 . . . . . . 2 . . . . 2 Robots Melted 3 | . 1 . 1 . . 1 . . . . . . . . . . . . Combat Hostiles 2 | . 1 . 1 . . . . . . . . . . . . . . . Parts Melted 21 | . 8 . 2 . . 3 1 . . 3 1 . . 3 . . . . Heat Transferred 6797 | 100 1517 . 1036 . . 814 370 . 148 777 444 . 1184 74 . . 111 222 Parts Sabotaged 3 | . . . . . . . . . . . . . . . . . . 3 Parts Stolen . | . . . . . . . . . . . . . . . . . . . Parts Stripped . | . . . . . . . . . . . . . . . . . . . Power Chain Reactions . | . . . . . . . . . . . . . . . . . . . Alert | -11 -10 -10 -9 -9 -8 -8 -8 -8 -7 -7 -7 -6 -6 -6 -6 -6 -6 -5 ------- Run | Yrd Mat Min Mat Min Mat Gar Mat Gar Fac Sto Gar Fac Ext Cet Arc Hub Gar Fac Maximum Alert Level 4 | . . . 2 . . 3 3 4 2 1 3 2 4 3 2 4 4 3 Low Security (%) 35 | 100 100 100 75 100 100 28 . . . 2 20 . 21 . . 24 . . Level 1 17 | . . . 21 . . 3 . . 3 97 4 69 28 . 93 14 . . Level 2 23 | . . . 3 . . 22 92 25 96 . 53 30 32 63 6 23 . . Level 3 18 | . . . . . . 45 7 53 . . 21 . 12 36 . 28 27 99 Level 4 4 | . . . . . . . . 21 . . . . 5 . . 9 72 . Level 5 . | . . . . . . . . . . . . . . . . . . . High Security . | . . . . . . . . . . . . . . . . . . . Max Security . | . . . . . . . . . . . . . . . . . . . Peak Influence 1483 | 5 63 82 417 159 37 1080 857 1262 662 286 877 459 1275 839 407 1264 1483 946 Initial 877 | . . 12 10 159 . 2 526 545 662 265 125 459 138 711 327 116 877 778 Average 413 | . 21 30 112 46 9 553 574 923 520 251 493 373 446 654 366 568 1239 810 Influence Increases 12122 | 10 333 289 1019 . 108 1108 577 757 371 206 922 312 2427 670 185 1368 736 724 Destroy 0b10 Robot/C 6320 | . 200 220 640 . 60 540 400 500 200 100 460 200 1260 300 80 460 460 240 Destroy 0b10 Robot/NC 460 | 10 35 . 85 . 10 . 30 5 25 25 10 45 85 10 5 55 . 25 Destroy Leader 982 | . 56 40 188 . 34 20 94 30 54 46 20 46 156 20 . 96 30 52 Allied During Kill 1926 | . . 29 11 . . 10 5 . . . . 3 791 330 85 570 92 . Successful Hack 225 | . 11 . 6 . 4 23 20 30 6 . 12 12 53 . . . . 48 Select Force Hacks 80 | . . . 30 . . . . . . . . . . . . 50 . . Disable Machine 375 | . . . 30 . . . 15 15 75 30 . . 30 . 15 105 . 60 Anti-Garrison Action 650 | . . . . . . 300 . 100 . . 200 . . . . . 50 . Destroy Structure 639 | . 1 . 29 . . 155 13 77 11 5 175 6 22 10 . 32 29 74 Lose Combat Pursuer 465 | . 30 . . . . 60 . . . . 45 . 30 . . . 75 225 Influence Decreases 11248 | 10 301 294 637 409 104 32 818 334 1050 596 238 906 1440 1121 672 446 507 1333 Entered New Map 5035 | . . 20 17 250 . 2 554 294 600 318 68 418 145 559 492 216 377 705 Time Decay 4153 | 10 261 244 530 159 104 . 214 . 270 238 . 428 695 362 120 120 . 398 Lost Part 810 | . 40 10 50 . . 10 30 40 30 . 160 40 90 20 . 10 50 230 Lost Ally 950 | . . 20 40 . . 20 20 . . 40 10 20 360 180 60 100 80 . Purge Threat 300 | . . . . . . . . . 150 . . . 150 . . . . . Squads Dispatched 49 | . 2 . 4 . . . 7 . 4 2 . 5 12 . . 6 . 7 Investigation 20 | . 1 . 3 . . . . . 1 . . 2 10 . . 2 . 1 Extermination 5 | . . . . . . . . . 1 . . 2 . . . . . 2 Reinforcement 15 | . 1 . 1 . . . 4 . 2 . . 1 1 . . 3 . 2 Assault 5 | . . . . . . . 1 . . 2 . . 1 . . . . 1 Garrison 4 | . . . . . . . 2 . . . . . . . . 1 . 1 Intercept . | . . . . . . . . . . . . . . . . . . . Searches Triggered . | . . . . . . . . . . . . . . . . . . . Construction Impeded 5 | . . . . . . . 1 . . . . . 1 . . 1 . 2 Haulers Reinforced 2 | . . . . . . . . . 1 . . . . . . 1 . . Active Scanning Responses . | . . . . . . . . . . . . . . . . . . . Cargo Convoy Interrupts 1 | . . . . . . . . . . . . . . . . . . 1 Stealth | -11 -10 -10 -9 -9 -8 -8 -8 -8 -7 -7 -7 -6 -6 -6 -6 -6 -6 -5 --------- Run | Yrd Mat Min Mat Min Mat Gar Mat Gar Fac Sto Gar Fac Ext Cet Arc Hub Gar Fac Distress Signals 14 | . 1 . 3 . . . 1 2 . . . . . 1 . 3 . 3 Communications Jammed 12 | . . . . . . . . . 11 . . 1 . . . . . . Distress Signals 12 | . . . . . . . . . 11 . . 1 . . . . . . Times Spotted 423 | . 15 11 41 3 4 34 35 25 14 9 30 17 69 17 3 27 29 40 Peak Tracking Total 15 | . 3 3 6 2 2 6 12 9 6 5 7 4 9 6 1 5 6 15 Tactical Retreats 22 | . 2 . . 1 . 3 . . . . 3 . 2 . . . 5 6 Traps | -11 -10 -10 -9 -9 -8 -8 -8 -8 -7 -7 -7 -6 -6 -6 -6 -6 -6 -5 ------- Run | Yrd Mat Min Mat Min Mat Gar Mat Gar Fac Sto Gar Fac Ext Cet Arc Hub Gar Fac Traps Triggered 27 | . 2 . 1 . . 10 . 3 . . 2 1 5 . . . 2 1 Indirectly . | . . . . . . . . . . . . . . . . . . . Trap Hack Attempts . | . . . . . . . . . . . . . . . . . . . Triggered . | . . . . . . . . . . . . . . . . . . . Disarmed . | . . . . . . . . . . . . . . . . . . . Reprogrammed . | . . . . . . . . . . . . . . . . . . . Reused . | . . . . . . . . . . . . . . . . . . . Traps Extracted . | . . . . . . . . . . . . . . . . . . . Installed . | . . . . . . . . . . . . . . . . . . . Triggered . | . . . . . . . . . . . . . . . . . . . Machines | -11 -10 -10 -9 -9 -8 -8 -8 -8 -7 -7 -7 -6 -6 -6 -6 -6 -6 -5 ---------- Run | Yrd Mat Min Mat Min Mat Gar Mat Gar Fac Sto Gar Fac Ext Cet Arc Hub Gar Fac Machines Disabled 36 | . . . 2 . . 3 1 4 5 2 2 . 4 . 1 7 1 4 Max in Single Turn 4 | . . . 1 . . 1 1 2 4 1 1 . 1 . 1 1 1 2 Garrison Relay 7 | . . . . . . 3 . 1 . . 2 . . . . . 1 . Phase Generator 1 | . . . . . . . . 1 . . . . . . . . . . Network Hub 2 | . . . . . . . . . . . . . . . . 2 . . Machines Repaired . | . . . . . . . . . . . . . . . . . . . Machines Dismantled . | . . . . . . . . . . . . . . . . . . . Machines Sabotaged 1 | . . . . . . . . . . . . . . . . 1 . . Overloaded Fab Kills . | . . . . . . . . . . . . . . . . . . . Hacking | -11 -10 -10 -9 -9 -8 -8 -8 -8 -7 -7 -7 -6 -6 -6 -6 -6 -6 -5 --------- Run | Yrd Mat Min Mat Min Mat Gar Mat Gar Fac Sto Gar Fac Ext Cet Arc Hub Gar Fac Machines Accessed 70 | . 6 1 9 . 1 4 5 2 4 5 1 5 14 . . 4 1 8 Terminals 53 | . 5 1 7 . . 4 3 2 4 3 1 2 14 . . 3 1 3 Fabricators 1 | . . . . . . . . . . . . . . . . . . 1 Repair Stations 1 | . . . . . . . . . . . . 1 . . . . . . Recycling Units 8 | . 1 . 1 . . . 1 . . 1 . 2 . . . . . 2 Scanalyzers 3 | . . . 1 . . . . . . . . . . . . . . 2 Garrison Access 4 | . . . . . 1 . 1 . . 1 . . . . . 1 . . Total Hacks 177 | . 19 1 25 . 1 8 9 2 10 8 1 13 31 . . 7 2 40 Successful 68 | . 11 1 10 . 1 3 5 2 2 3 1 5 8 . . 2 1 13 Failed 107 | . 8 . 14 . . 5 4 . 8 5 . 8 23 . . 5 1 26 Catastrophic 24 | . . . 4 . . 1 . . 4 1 . 1 4 . . 3 . 6 Database Lockouts 2 | . . . 1 . . . . . . . . . . . . . . 1 Manual 76 | . 17 . 13 . . . 7 . 8 2 . 2 6 1 . 6 . 14 Terminals 126 | . 18 1 16 . . 8 6 2 10 5 1 3 31 . . 6 2 17 Fabricators 3 | . . . . . . . . . . . . . . . . . . 3 Repair Stations 3 | . . . . . . . . . . . . 3 . . . . . . Recycling Units 23 | . 1 . 4 . . . 2 . . 2 . 7 . . . . . 7 Scanalyzers 18 | . . . 5 . . . . . . . . . . . . . . 13 Garrison Access 4 | . . . . . 1 . 1 . . 1 . . . . . 1 . . Terminal Hacks 26 | . 2 1 2 . . 3 1 2 1 1 1 1 7 . . . 1 3 Robot Analysis 2 | . 1 . 1 . . . . . . . . . . . . . . . Open Door 9 | . . . . . . 1 . . . 1 . 1 6 . . . . . Branch Access Points 2 | . . . 1 . . . 1 . . . . . . . . . . . Emergency Access Points 2 | . . . . . . 1 . . . . 1 . . . . . . . Terminal Index 1 | . . . . . . . . . . . . . . . . . . 1 Unreport Threat 2 | . . . . . . . . . 1 . . . 1 . . . . . Locate Traps 1 | . 1 . . . . . . . . . . . . . . . . . Registered Components 1 | . . . . . . . . . . . . . . . . . . 1 Zone Layout 2 | . . 1 . . . . . . . . . . . . . . . 1 Patrol Navigation 2 | . . . . . . . . 1 . . . . . . . . 1 . Security Stations 2 | . . . . . . 1 . 1 . . . . . . . . . . Fabricator Hacks . | . . . . . . . . . . . . . . . . . . . Repair Station Hacks 1 | . . . . . . . . . . . . 1 . . . . . . Scan Component 1 | . . . . . . . . . . . . 1 . . . . . . Recycling Unit Hacks 9 | . 1 . 2 . . . 1 . . 1 . 3 . . . . . 1 Report Inventory 7 | . 1 . 1 . . . 1 . . 1 . 2 . . . . . 1 Retrieve Components 2 | . . . 1 . . . . . . . . 1 . . . . . . Scanalyzer 11 | . . . 4 . . . . . . . . . . . . . . 7 Insert Component 2 | . . . . . . . . . . . . . . . . . . 2 Analyze 2 | . . . . . . . . . . . . . . . . . . 2 Retrieve Study 7 | . . . 4 . . . . . . . . . . . . . . 3 Garrison Access Hacks 4 | . . . . . 1 . 1 . . 1 . . . . . 1 . . Unlock Access 4 | . . . . . 1 . 1 . . 1 . . . . . 1 . . Unauthorized Hacks 17 | . 8 . 2 . . . 2 . 1 . . . 1 . . 1 . 2 Terminals 16 | . 8 . 1 . . . 2 . 1 . . . 1 . . 1 . 2 Track 1 | . . . . . . . . . . . . . . . . . . 1 Assimilate 1 | . . . . . . . . . 1 . . . . . . . . . Botnet 8 | . 3 . 1 . . . 2 . . . . . 1 . . . . 1 Skim 5 | . 5 . . . . . . . . . . . . . . . . . Sabotage 1 | . . . . . . . . . . . . . . . . 1 . . Fabricators . | . . . . . . . . . . . . . . . . . . . Repair Stations . | . . . . . . . . . . . . . . . . . . . Recycling Units 1 | . . . 1 . . . . . . . . . . . . . . . Tunnel 1 | . . . 1 . . . . . . . . . . . . . . . Scanalyzers . | . . . . . . . . . . . . . . . . . . . Garrison Access . | . . . . . . . . . . . . . . . . . . . Data Cores Recovered . | . . . . . . . . . . . . . . . . . . . Used . | . . . . . . . . . . . . . . . . . . . Hacking Detections 53 | . 5 . 7 . . 4 4 1 4 3 1 4 12 . . 2 . 6 Full Trace Events 15 | . . . 1 . . 1 . . 1 . . 2 8 . . 1 . 1 Feedback Events 2 | . . . 1 . . . . . . . . 1 . . . . . . Corruption 2 | . . . 1 . . . . . . . . 1 . . . . . . Feedback Blocked . | . . . . . . . . . . . . . . . . . . . Robot Schematics Acquired . | . . . . . . . . . . . . . . . . . . . Robots Built . | . . . . . . . . . . . . . . . . . . . Authchips . | . . . . . . . . . . . . . . . . . . . Time . | . . . . . . . . . . . . . . . . . . . Total Robot Build Rating . | . . . . . . . . . . . . . . . . . . . Part Schematics Acquired 2 | . . . . . . . . . . . . . . . . . . 2 Parts Built . | . . . . . . . . . . . . . . . . . . . Authchips . | . . . . . . . . . . . . . . . . . . . Time . | . . . . . . . . . . . . . . . . . . . Total Part Build Rating . | . . . . . . . . . . . . . . . . . . . Part Studies Acquired 7 | . . . 4 . . . . . . . . . . . . . . 3 Parts Repaired . | . . . . . . . . . . . . . . . . . . . Time . | . . . . . . . . . . . . . . . . . . . Parts Recycled . | . . . . . . . . . . . . . . . . . . . Recycled Matter . | . . . . . . . . . . . . . . . . . . . Retrieved Matter . | . . . . . . . . . . . . . . . . . . . Retrieved Components 11 | . . . 9 . . . . . . . . 2 . . . . . . Parts Scanalyzed 2 | . . . . . . . . . . . . . . . . . . 2 Part Schematics Acquired 2 | . . . . . . . . . . . . . . . . . . 2 Parts Damaged 1 | . . . . . . . . . . . . . . . . . . 1 Bothacking | -11 -10 -10 -9 -9 -8 -8 -8 -8 -7 -7 -7 -6 -6 -6 -6 -6 -6 -5 ------------ Run | Yrd Mat Min Mat Min Mat Gar Mat Gar Fac Sto Gar Fac Ext Cet Arc Hub Gar Fac Used RIF Installer 4 | . . . . . . 2 . 1 . . 1 . . . . . . . Patrol Navigation 1 | . . . . . . . . . . . 1 . . . . . . . Program Shield 1 | . . . . . . 1 . . . . . . . . . . . . Autooverride 1 | . . . . . . . . 1 . . . . . . . . . . Robots Hacked 16 | . . . . . . . . . . . . . 10 . 1 4 . 1 Non-combat 2 | . . . . . . . . . . . . . 1 . . . . 1 Combat 14 | . . . . . . . . . . . . . 9 . 1 4 . . Autooverrided 8 | . . . . . . . . . . . . . 5 . . 3 . . Robot Hacks Applied 9 | . . . . . . . . . . . . . 6 . 1 1 . 1 parse_system 2 | . . . . . . . . . . . . . 1 . 1 . . . find_recycling 1 | . . . . . . . . . . . . . . . . . . 1 amplify_resonance 2 | . . . . . . . . . . . . . 1 . . 1 . . formatsys_high 4 | . . . . . . . . . . . . . 4 . . . . . Relay Couplers Released 29 | . . . . . . 10 . 5 . . 9 . . . . . 5 . Machine Destruction 29 | . . . . . . 10 . 5 . . 9 . . . . . 5 . Attached 9 | . . . . . . . . . . . . 1 4 . . . 1 3 Fabnet Peak Effective % . | . . . . . . . . . . . . . . . . . . . Robots Rewired 27 | . . . . . . 2 . . . . 1 . 24 . . . . . Allies Hacked 1 | . . . . . . . . . . . . . 1 . . . . . Hacks Repelled . | . . . . . . . . . . . . . . . . . . . Allies | -11 -10 -10 -9 -9 -8 -8 -8 -8 -7 -7 -7 -6 -6 -6 -6 -6 -6 -5 -------- Run | Yrd Mat Min Mat Min Mat Gar Mat Gar Fac Sto Gar Fac Ext Cet Arc Hub Gar Fac Total Allies 63 | . . 3 . 1 . 2 . . 1 2 1 . 45 5 . 3 . . Largest Group 24 | . . 3 2 1 . 2 1 . 1 3 1 1 24 21 14 12 4 . Highest-Rated Group 900 | . . 40 24 31 . 51 20 . 10 72 21 21 797 900 635 607 319 . Highest-Rated Ally 159 | . . 16 16 31 . 31 20 . 10 31 21 21 159 153 96 96 96 . Total Orders 11 | . . . . . . . . . . . . . 4 7 . . . . STAY 7 | . . . . . . . . . . . . . 3 4 . . . . FOLLOW 4 | . . . . . . . . . . . . . 1 3 . . . . Ally Attacks 654 | . . 37 26 . . 14 1 . . 10 . 5 258 138 21 129 15 . Total Damage 16629 | . . 334 258 . . 350 59 . . 42 . 85 6811 3101 495 4607 487 . Kills 130 | . . 7 6 . . 3 1 . . . . . 55 15 4 33 6 . Allies Corrupted 1 | . . . . . . . . . . . . . 1 . . . . . Allies Melted . | . . . . . . . . . . . . . . . . . . . Intel | -11 -10 -10 -9 -9 -8 -8 -8 -8 -7 -7 -7 -6 -6 -6 -6 -6 -6 -5 ------- Run | Yrd Mat Min Mat Min Mat Gar Mat Gar Fac Sto Gar Fac Ext Cet Arc Hub Gar Fac Active Infowar (turns) 10385 | 34 990 614 1106 . 380 2 . . 407 318 . 961 2895 836 253 246 395 948 Optics 6015 | . . . . . . . . . . . . 442 2895 836 253 246 395 948 Sensors 895 | . . . . . 380 2 . . . . . . . . . . . 513 Structural 1201 | . . . 1106 . 57 . . . . . . . 38 . . . . . Traps 396 | . . . . . . . . . . . . 396 . . . . . . Seismic 1638 | 34 990 614 . . . . . . . . . . . . . . . . Triangulation 3 | . . . . . . . . . . . . . . . . . . 3 Jamming 1533 | . . . . . . . . . 407 318 . 565 243 . . . . . Robot Analysis Total 2 | . 1 . 1 . . . . . . . . . . . . . . . Derelict Logs Recovered 2 | . . 1 . 1 . . . . . . . . . . . . . . Drone Launches . | . . . . . . . . . . . . . . . . . . . Drone Recoveries . | . . . . . . . . . . . . . . . . . . . Exploration | -11 -10 -10 -9 -9 -8 -8 -8 -8 -7 -7 -7 -6 -6 -6 -6 -6 -6 -5 ------------- Run | Yrd Mat Min Mat Min Mat Gar Mat Gar Fac Sto Gar Fac Ext Cet Arc Hub Gar Fac Turns Passed 17150 | 118 990 849 2466 576 380 1393 446 860 582 517 1218 1047 2895 836 253 246 530 948 Spaces Moved 7665 | 61 470 448 919 257 149 614 201 421 304 242 552 467 1423 221 83 82 135 616 Core 242 | 3 . . . . . . . . . . . . 9 . . . 3 227 Treads 203 | 48 115 . . . . 2 . . . . . . . . . 1 . 37 Legs 58 | . . . . . . . . . . . . . . . . . 39 19 Wheels 6836 | 10 355 448 919 257 149 612 201 421 304 242 552 467 1271 221 83 81 93 150 Hover . | . . . . . . . . . . . . . . . . . . . Flight 326 | . . . . . . . . . . . . . 143 . . . . 183 Fastest Speed 32 | 50 130 175 175 195 210 150 150 135 150 155 140 150 32 140 280 160 160 40 Average Speed 168 | 144 148 175 206 209 217 160 150 154 155 161 171 184 135 260 280 207 279 108 Slowest Speed 2400 | 160 480 175 215 210 225 400 150 210 165 165 240 240 155 280 280 480 2400 330 Overloaded Moves . | . . . . . . . . . . . . . . . . . . . Propulsion Burnouts . | . . . . . . . . . . . . . . . . . . . Robots Hopped 2 | . . . . . . . . . . . . . . 2 . . . . Potential Cave-ins . | . . . . . . . . . . . . . . . . . . . Cave-ins Triggered . | . . . . . . . . . . . . . . . . . . . Exploration Rate (%) 48 | 5 60 92 80 58 16 78 24 63 10 42 73 13 87 60 82 17 31 25 Regions Visited 18 Branch Regions 7 Pre-discovered Areas 2 | . . 1 1 . . . . . . . . . . . . . . . Known Exits Taken 8 | . 1 1 1 . 1 . 1 . 1 1 . . . . . 1 . . Unknown Exits Taken 6 | 1 . . . 1 . . . . . . . 1 1 1 1 . . . Scrap Searched 3 | . . 2 . 1 . . . . . . . . . . . . . . Spaces Dug 24 | . . . . . . 6 . 5 . 2 1 . . . . . 4 6 Terrain Destroyed 338 | . . . 30 . . 20 12 102 9 2 107 . . 2 . 6 11 37 Melee 19 | . . . . . . 6 . 3 . 2 1 . . . . . 2 5 Projectile 37 | . . . . . . . . . . . 2 . . 2 . 6 8 19 AOE 281 | . . . 30 . . 14 12 99 9 . 104 . . . . . . 13 Terrain Rammed . | . . . . . . . . . . . . . . . . . . . Walls Destroyed . | . . . . . . . . . . . . . . . . . . . Machines Disabled . | . . . . . . . . . . . . . . . . . . . Actions | -11 -10 -10 -9 -9 -8 -8 -8 -8 -7 -7 -7 -6 -6 -6 -6 -6 -6 -5 --------- Run | Yrd Mat Min Mat Min Mat Gar Mat Gar Fac Sto Gar Fac Ext Cet Arc Hub Gar Fac Total 10481 | 79 664 498 1260 293 182 870 271 537 365 303 684 571 2206 465 105 119 210 799 Wait 898 | . 116 33 83 28 1 6 10 1 17 6 2 17 330 188 15 . 11 34 Move 7646 | 60 469 447 918 256 149 613 201 420 303 241 551 466 1422 216 82 82 134 616 Hop 2 | . . . . . . . . . . . . . . 2 . . . . Pick Up 241 | 5 12 6 50 2 7 15 5 11 8 4 14 18 55 13 2 1 . 13 Fast Attach 70 | 7 . . 2 . 3 1 2 5 1 1 3 5 13 3 . 6 4 14 Attach 102 | 1 5 1 8 . 4 3 . 6 5 3 15 9 18 1 1 1 2 19 Detach 20 | 1 . . 1 . 1 . . 2 . 3 2 1 3 . . 1 . 5 Swap 160 | . 6 . 15 1 . 20 6 9 5 10 12 5 32 11 . 5 10 13 Drop 222 | . . 1 44 3 5 15 9 14 4 6 3 9 57 18 2 5 . 27 Fire 684 | 5 55 10 139 3 12 43 36 40 21 25 44 41 112 13 3 17 29 36 Melee 118 | . . . . . . 44 . 13 1 3 28 . 11 . . . 4 14 Ram 6 | . 1 . . . . . 2 . . 1 1 . . . . 1 . . Kick . | . . . . . . . . . . . . . . . . . . . Crush . | . . . . . . . . . . . . . . . . . . . Escape Stasis 146 | . . . . . . 66 . 16 . . 8 . 32 . . . 16 8 Rewire 166 | . . . . . . 44 . . . . 1 . 121 . . . . . Trap . | . . . . . . . . . . . . . . . . . . . Miscellaneous . | . . . . . . . . . . . . . . . . . . . Route ------- -11/Scrapyard -10/Materials (discovered 5 exits: *Mat x3 / *Min / Sub) -10/Mines (discovered 3 exits: *Mat x2 / *Sub) -9/Materials (discovered 4 exits: *Mat x3 / *Min) -9/Mines -8/Materials -8/Garrison (discovered 2 exits: *Mat x2) -8/Materials (discovered 2 exits: *Fac / Gar) -8/Garrison (discovered 2 exits: *Fac x2) -7/Factory -7/Storage -7/Garrison (discovered 2 exits: *Fac x2) -6/Factory (discovered 2 exits: [*Low] / *Ext) -6/Extension (discovered 2 exits: *Fac / *Cet) -6/Cetus (discovered 2 exits: *Fac / [*Arc]) -6/Archives (discovered 3 exits: *Fac / *Hub x2) -6/Hub_04(d) (discovered 2 exits: *Fac / Gar) -6/Garrison -5/Factory (discovered 1 exit: [*Upp]) History --------- Turn | Location | Event 46 | -11/Scrapyard | Discovered new exit (range 15) 119 | -11/Scrapyard | Entered Materials 176 | -10/Materials | Discovered new exit (range 6) 323 | -10/Materials | Build established: Mutant 601 | -10/Materials | Learned location of 2 exits from Subcaves 635 | -10/Materials | Identified exit to Subcaves 660 | -10/Materials | Learned Storage emergency access door positions 675 | -10/Materials | Learned location of 2 exits from Mines 681 | -10/Materials | Identified exit to Materials 683 | -10/Materials | Identified exit to Mines 684 | -10/Materials | Learned Storage stockpile data 687 | -10/Materials | Learned 2 Mines zone layouts 702 | -10/Materials | Learned Recycling recycling unit intel 728 | -10/Materials | Learned Storage emergency access door positions 972 | -10/Materials | Discovered exit to Materials (range 16) 1109 | -10/Materials | Entered Mines 1507 | -10/Mines | Assisted by bots powering up and referring to "LRC-V3" 1722 | -10/Mines | Core integrity fell below 50% 1928 | -10/Mines | Learned location of Storage (-7) 1958 | -10/Mines | Entered Materials 1958 | -9/Materials | Accompanied by 2 allies 1958 | -9/Materials | Evolved 2 slots: Utility x2 2141 | -9/Materials | Lost 3 parts (1p1u1w) 2419 | -9/Materials | Build established: Scavenger-Mutant 2548 | -9/Materials | Central database locked down 2618 | -9/Materials | Discovered new exit (range 5) 3160 | -9/Materials | Discovered new exit (range 10) 3511 | -9/Materials | Build established: Mutant 3604 | -9/Materials | Discovered new exit (range 10) 3762 | -9/Materials | Core integrity fell below 50% 3928 | -9/Materials | Identified exit to Mines 4424 | -9/Materials | Entered Mines 4465 | -9/Mines | Received a Mining Laser from a helpful Derelict 4675 | -9/Mines | Found a damaged Exp. Sensor Array with a note attached 4680 | -9/Mines | Found Prototype Device 4688 | -9/Mines | Assembled infested the area 4976 | -9/Mines | Discovered new exit (range 8) 4983 | -9/Mines | Received a Rocket Launcher from a helpful Derelict 5000 | -9/Mines | Entered Materials 5000 | -8/Materials | Evolved 2 slots: Utility x1, Weapon x1 5000 | -8/Materials | Identified Exp. Sensor Array 5380 | -8/Materials | Identified exit to Garrison 5380 | -8/Materials | Entered Garrison 5442 | -8/Garrison | Triggered checkpoint 5693 | -8/Garrison | Garrison Relay disabled 5771 | -8/Garrison | Triggered checkpoint 5773 | -8/Garrison | Triggered checkpoint 5934 | -8/Garrison | Discovered new exit (range 14) 5944 | -8/Garrison | Learned Materials security intel 5984 | -8/Garrison | Triggered checkpoint 6042 | -8/Garrison | Garrison Relay disabled 6208 | -8/Garrison | Triggered checkpoint 6270 | -8/Garrison | Triggered checkpoint 6373 | -8/Garrison | Garrison Relay disabled 6414 | -8/Garrison | Discovered new exit (range 12) 6428 | -8/Garrison | Installed Relay Interface Framework 6518 | -8/Garrison | Triggered checkpoint 6590 | -8/Garrison | Expanded RIF knowledge: Program Shield 6773 | -8/Garrison | Entered Materials 6773 | -8/Materials | Accompanied by 1 ally 7090 | -8/Materials | Garrison activated, responded to threat 7128 | -8/Materials | Build established: Gunner 7159 | -8/Materials | Destroyed 7 combat bots 7173 | -8/Materials | First assault squad dispatched 7197 | -8/Materials | Garrison activated, responded to threat 7203 | -8/Materials | Core integrity fell below 50% 7207 | -8/Materials | Discovered new exit (range 10) 7219 | -8/Materials | Identified exit to Garrison 7219 | -8/Materials | Entered Garrison 7225 | -8/Garrison | Destroyed 7 combat bots 7264 | -8/Garrison | Expanded RIF knowledge: Autooverride 7294 | -8/Garrison | Learned Factory security intel 7331 | -8/Garrison | Garrison Relay disabled 7346 | -8/Garrison | Triggered checkpoint 7435 | -8/Garrison | Triggered checkpoint 7470 | -8/Garrison | Destroyed 9 combat bots 7566 | -8/Garrison | Discovered new exit (range 13) 7642 | -8/Garrison | Phase Generator disabled 7873 | -8/Garrison | Triggered checkpoint 7915 | -8/Garrison | Destroyed 8 combat bots 8057 | -8/Garrison | Discovered new exit (range 15) 8079 | -8/Garrison | Entered Factory 8079 | -7/Factory | Evolved 2 slots: Utility x1, Weapon x1 8080 | -7/Factory | Identified exit to Storage 8139 | -7/Factory | Build established: Bothacker-Gunner 8661 | -7/Factory | Entered Storage 8661 | -7/Storage | Accompanied by 1 ally 9108 | -7/Storage | Found Powered Armor 9131 | -7/Storage | Met a pair of Derelict thieves 9167 | -7/Storage | Identified exit to Garrison 9178 | -7/Storage | Entered Garrison 9178 | -7/Garrison | Accompanied by 1 ally 9283 | -7/Garrison | Build established: Bothacker-Tank 9358 | -7/Garrison | Garrison Relay disabled 9416 | -7/Garrison | Triggered checkpoint 9456 | -7/Garrison | Triggered checkpoint 9465 | -7/Garrison | Triggered checkpoint 9488 | -7/Garrison | Lost 3 parts (1u2w) 9510 | -7/Garrison | Destroyed 11 combat bots 9540 | -7/Garrison | Triggered checkpoint 9606 | -7/Garrison | Discovered new exit (range 15) 9872 | -7/Garrison | Triggered checkpoint 9924 | -7/Garrison | Spotted B-75 Beast 9924 | -7/Garrison | Spotted B-75 Beast 9960 | -7/Garrison | Lost 3 parts (2u1w) 10036 | -7/Garrison | Discovered new exit (range 7) 10057 | -7/Garrison | Spotted B-75 Beast 10072 | -7/Garrison | Triggered checkpoint 10110 | -7/Garrison | Expanded RIF knowledge: Patrol Navigation 10134 | -7/Garrison | Destroyed B-75 Beast 10167 | -7/Garrison | Lost 8 parts (1p1n3u3w) 10284 | -7/Garrison | Core integrity fell below 50% 10396 | -7/Garrison | Entered Factory 10396 | -6/Factory | Accompanied by 1 ally 10396 | -6/Factory | Evolved 2 slots: Power x1, Utility x1 10502 | -6/Factory | Build established: Botlord-Gunner 10921 | -6/Factory | Lost 3 parts (1n1u1w) 11371 | -6/Factory | Discovered new exit (range 6) 11374 | -6/Factory | Discovered new exit (range 22) 11443 | -6/Factory | Entered Extension 11921 | -6/Extension | Rescued a captive Derelict 11921 | -6/Extension | Rescued a captive Derelict 11979 | -6/Extension | Build established: Bothacker-Gunner 12126 | -6/Extension | Lost 3 parts (1n2w) 12668 | -6/Extension | Disrupted transfer network 12819 | -6/Extension | Spotted B-75 Beast 12851 | -6/Extension | Allies destroyed B-75 Beast 12852 | -6/Extension | Spotted B-75 Beast 12876 | -6/Extension | Destroyed B-75 Beast 12903 | -6/Extension | Lost 3 allies 12950 | -6/Extension | Rescued a captive Derelict 12952 | -6/Extension | Rescued a captive Derelict 13154 | -6/Extension | Build established: Bothacker-Tank 13193 | -6/Extension | First assault squad dispatched 13328 | -6/Extension | Lost 5 allies 13499 | -6/Extension | Rescued A7 13819 | -6/Extension | Rescued a captive Derelict 13821 | -6/Extension | Rescued a captive Derelict 13839 | -6/Extension | Rescued a captive Derelict 13840 | -6/Extension | Rescued a captive Derelict 13877 | -6/Extension | Build established: Bothacker-Gunner 14065 | -6/Extension | Rescued a captive Derelict 14067 | -6/Extension | Rescued a captive Derelict 14103 | -6/Extension | Rescued a captive Derelict 14223 | -6/Extension | Discovered new exit (range 10) 14225 | -6/Extension | Discovered new exit (range 6) 14326 | -6/Extension | Build established: Commander-Gunner 14338 | -6/Extension | Entered Cetus 14338 | -6/Cetus | Accompanied by 20 allies (A7) 14343 | -6/Cetus | Acquired a Cetus Manufacturing Module code from A7 14366 | -6/Cetus | Spotted Cetus Guard 14366 | -6/Cetus | Spotted Cetus Guard 14366 | -6/Cetus | Spotted Cetus Guard 14366 | -6/Cetus | Spotted Cetus Guard 14379 | -6/Cetus | Allies destroyed Cetus Guard 14391 | -6/Cetus | Allies destroyed Cetus Guard 14401 | -6/Cetus | Destroyed Cetus Guard 14414 | -6/Cetus | Allies destroyed Cetus Guard 14419 | -6/Cetus | Extracted ID and sensor layout for unrecognized location from A7's data core 14422 | -6/Cetus | Lost 4 allies 14469 | -6/Cetus | System corruption reached 10% 14587 | -6/Cetus | Discovered new exit (range 21) 14671 | -6/Cetus | Started Cetus Manufacturing Module 14696 | -6/Cetus | Manufactured an Enhanced Grunt 14721 | -6/Cetus | Manufactured an Enhanced Grunt 14746 | -6/Cetus | Manufactured an Enhanced Grunt 14771 | -6/Cetus | Manufactured an Enhanced Grunt 14796 | -6/Cetus | Manufactured an Enhanced Grunt 14871 | -6/Cetus | Spotted Cetus Guard 14874 | -6/Cetus | Spotted Cetus Guard 14885 | -6/Cetus | Spotted Cetus Guard 14891 | -6/Cetus | Spotted Cetus Guard 14892 | -6/Cetus | Allies destroyed Cetus Guard 14901 | -6/Cetus | Allies destroyed Cetus Guard 14922 | -6/Cetus | Allies destroyed Cetus Guard 14931 | -6/Cetus | Allies destroyed Cetus Guard 14933 | -6/Cetus | Found Prototype Device 14933 | -6/Cetus | Identified Exp. Thermal Shield 14935 | -6/Cetus | Discovered new exit (range 22) 14951 | -6/Cetus | Lost 6 allies 14999 | -6/Cetus | Met Revision 17 15088 | -6/Cetus | Security sweep announced 15174 | -6/Cetus | Entered Archives 15174 | -6/Archives | Accompanied by 14 allies 15236 | -6/Archives | Discovered new exit (range 14) 15237 | -6/Archives | Lost 3 allies 15281 | -6/Archives | Discovered new exit (range 15) 15320 | -6/Archives | Discovered new exit (range 17) 15427 | -6/Archives | Entered Hub_04(d) 15427 | -6/Hub_04(d) | Accompanied by 11 allies 15540 | -6/Hub_04(d) | Spotted B-75 Beast 15568 | -6/Hub_04(d) | Allies destroyed B-75 Beast 15581 | -6/Hub_04(d) | Lost 5 allies 15627 | -6/Hub_04(d) | Network Hub disabled 15627 | -6/Hub_04(d) | Network Hub disabled 15644 | -6/Hub_04(d) | Spotted Lightning 15647 | -6/Hub_04(d) | Discovered new exit (range 22) 15660 | -6/Hub_04(d) | Garrison activated, responded to threat 15673 | -6/Hub_04(d) | Identified exit to Garrison 15673 | -6/Hub_04(d) | Entered Garrison 15673 | -6/Garrison | Accompanied by 4 allies 15693 | -6/Garrison | Triggered checkpoint 15776 | -6/Garrison | Build established: Bothacker-Tank 15778 | -6/Garrison | Garrison Relay disabled 15816 | -6/Garrison | Core integrity fell below 50% 15955 | -6/Garrison | Lost 3 parts (2n1w) 16167 | -6/Garrison | Discovered new exit (range 12) 16203 | -6/Garrison | Entered Factory 16203 | -5/Factory | Evolved 2 slots: Utility x2 16727 | -5/Factory | Lost 3 parts (1n1u1w) 16740 | -5/Factory | Garrison activated, responded to threat 16756 | -5/Factory | Cargo convoy interrupted 16785 | -5/Factory | Core integrity fell below 50% 16815 | -5/Factory | Lost 12 parts (2p1n5u4w) 16893 | -5/Factory | Discovered new exit (range 2) 16895 | -5/Factory | Core integrity fell below 20% 17080 | -5/Factory | Central database locked down 17081 | -5/Factory | Spotted B-75 Beast 17103 | -5/Factory | First assault squad dispatched 17110 | -5/Factory | System corruption reached 10% 17151 | -5/Factory | Destroyed by H-71 Marshal with Heavy Mass Driver Last Messages --------------- 17137_ Acquired Nuclear Pulse Array+. 17137_ U-05 Engineer destroyed. 17138_ P-70 Sage resets U-05 Engineer, system corruption cleaned. 17140_ Relay Coupler [Sentry] destroyed. 17140_ Hvy. Machine Gun destroyed. 17140_ Relay Coupler [Swarmer] destroyed. 17140_ Critical hit (Blast). 17140_ U-05 Engineer builds a Wall. 17141_ Acquired 1 matter. 17144_ Acquired Triangulator. 17145_ Slug penetrates Wall. 17149_ Acquired Adv. Melee Analysis Suite. 17149_ Slug penetrates Wall. 17150_ System corrupted: Matter fused (-7). 17150_ Nuclear Pulse Array+ destroyed. 17150_ Hacking Suite destroyed. 17150_ Chain reaction triggered in Unknown Engine. 17150_ G-50 Soldier destroyed. 17150_ Imp. Remote Datajack+ destroyed. 17150_ K-01 Serf collects debris. Map ----- +----------------------------------------------------+ | ?????????????????????????????????????????????????? | | ?????????????????????????????????????????????????? | | ?????????????????????????????????????????????????? | | ?????????????????????????????????????????????????? | | ?????????????????????????????????????????????????? | | ???????????????????????????????????????????????!?? | | ??????????????????????????? ??????? #????## | | ????????????????????????? ??????? #?????# | | ???????????????????????? ##+????####?????# | | ???????????????????????? ############## ### | | ????????????????????????? !!! """ #?? | | ????????????????????????? !!! "Y" #?? | | ?????????????????????????? !!! " " #?? | | ??????????????????????????? #####+##? | | ??????????????????????????? ## ## | | ????????????????????? ?? "" ## " | | ????????????????????? "" ## #" | | ?????????????????????? """ ##[ ! #" | | ???????????????????????? """ ##/#####" | | ??????????????????????????# """ ]]] # "" #" | | ??????????????????????????# ]] # ""S #" | | ??????????????????? T ### H g kR %#= " #" | | ?????????????????? / uBB % %+ #" | | ????????????????????????## p BB% !!# ! #" | | ????????????????????????#; %;= ;; #* =# #" | | ????????????????????????#@ % ## # ##########" | | ????????????????????????# ###"# ####?????#" | | ????????????????????????# !!! /g ##???????# | | ????????????????????????#% !! #### #????????#] | | ????????????????????????# !! #??# #????????## | | ????????????????????????# #??# ##????????? | | ????????????????????????########??#+# #????????? | | ????????????????????????????????!?? + " #????##### | | ??????????????????????????????????? # #????# | | ??????????????????????????????????? ## ##????# | | ??????????????????????????????????? ## #?????# " | | ??????????????????????????????????? ## #?????#! | | ?????????????????????????????????????? #?????# ??? | | ?????????????????????????????????????? #?????????? | | ?????????????????????????????????????? ?????????? | | ??????????????????????????????????????##?????????? | | ?????????????????????????????????????????????????? | | ??????????????????????????###########????????????? | | ??????????????????????????# #????????????? | | ??????????????????????????# #????????????? | | ??????????????????????????# #????????????? | | ????????????????########### #????????????? | | ????????????????# # #????????????? | | ????????????????# # #????????????? | | ????????????????# # #????????????? | +----------------------------------------------------+ Best States ------------- Heat Dissipation 75 Energy Generation 45 Energy Capacity 1100 Matter Stores 300 Matter Capacity 300 Sight Range 22 Robot Scan Range 20 Terrain Scan Density 10 Jamming Range 12 Additional Mass Support 16 Armor Coverage 1000 Power Shielding 90 Weapon Shielding 33 Weapon Cycling 15 Evasion (%) 63 Targeting Accuracy 16 Melee Accuracy 8 Recoil Reduction 2 Matter Filtering 30 Offensive Hacking 24 Defensive Hacking 10 Relay Coupler Types 3 Relay Coupler Value 84 Item Schematics ----------------- Imp. VSS Leg | -5/Factory | Scanalyzed Plasma Rifle | -5/Factory | Scanalyzed Robot Schematics ------------------ None Fabricated ------------ Nothing Repaired ---------- Nothing Studied --------- Com. Wheel | -9/Materials | Hacked Wheel | -9/Materials | Hacked Lgt. Treads | -9/Materials | Hacked Hvy. Assault Rifle | -9/Materials | Hacked Remote Datajack | -5/Factory | Hacked Nuclear Pulse Array | -5/Factory | Hacked Imp. Remote Datajack | -5/Factory | Hacked Alien Tech Used ----------------- None Achievements -------------- Let Me Out Of Here Mindtrick Oppo Buddy Challenges ------------ None Game ------ Seed SuperquantumMetafiberFlakker Manual? 0 Play Time 03:10:56 Cumulative 278.6 hours Start 2025.11.14 @ 18:24:03 End 2025.11.16 @ 00:40:54 Sessions 6 Manual Loads 0 Difficulty Rogue Special Mode None Game No. 299 Rogue 299 Adventurer 0 Explorer 0 Win Type - Total 12 Types 5/0/3/1/1/0/0/1/0/1 Lore% 77 Gallery% 75 Achievement% 56 Wizard Run 0 Options --------- Layout 1 ASCII 0 Keyboard 1 Movement Numpad Keybinds 0 Fullscreen 2 Font 32/SmallcapsGlow Map View 77x35 Zoom Use 0% Tactical HUD 1 Map Filters NONE Filters NONE Steam 1 RUN: 6463c9d9-e457-4d34-9af9-88bed3f856b0